Cogmind - Beta 12 *** ADVENTURER MODE // 2023.10.09 @ 12:59:39 // Winter2022/Polymind Player: PersmaticCoreSerial_K4E2 Result: Self-destructed Performance ------------- Evolutions (2) 1000 Regions Visited (5) 1000 Robots Destroyed (4) 20 Value Destroyed (175) 175 Prototype IDs (2) 40 Alien Tech Used (0) 0 Bonus (3117) 3117 TOTAL SCORE: 5182 Bonus ------- Polymind Skill 2647 Pacifist 470 Cogmind --------- Core Integrity 166/550 Matter 100/100 Energy 215/215 System Corruption 0% Temperature Cool (0) Movement Treading (160) Location -8/Storage Parts ------- > --- POWER (1) -------- Improved Ion Engine > --- PROPULSION (2) --- Light Treads Light Treads > --- UTILITY (3) ------ Heat Sink Heat Sink Light Armor Plating > --- WEAPON (2) ------- Beam Rifle Heavy Assault Rifle > --- INVENTORY (1) ---- Heavy Assault Rifle Peak State ------------ > --- POWER ------------ Improved Ion Engine > --- PROPULSION ------- Light Treads Light Treads > --- UTILITY ---------- Heat Sink Heat Sink Light Armor Plating > --- WEAPON ----------- Beam Rifle Heavy Assault Rifle > --- INVENTORY -------- (None) [Rating: 11] Favorites ----------- Power Light Ion Engine Engine Light Ion Engine Propulsion Light Treads Treads Light Treads Wheel Compact Wheel Hover Unit Hover Unit Flight Unit Flight Unit Utility Heat Sink Device Heat Sink Storage Small Storage Unit Processor Transport Network Coupler Protection Light Armor Plating Weapon Beam Rifle Energy Gun Beam Rifle Ballistic Gun Heavy Assault Rifle Special Weapon Mining Laser Build | -11 -10 -10 -9 -8 -8 ------- Run | Jun Mat Min Mat Mat Sto Slots Evolved . | . . . . . . Power . | . . . . . . Propulsion . | . . . . . . Utility . | . . . . . . Weapon . | . . . . . . Parts Attached . | . . . . . . Power . | . . . . . . Engine . | . . . . . . Core . | . . . . . . Reactor . | . . . . . . Propulsion . | . . . . . . Treads . | . . . . . . Leg . | . . . . . . Wheel . | . . . . . . Hover . | . . . . . . Flight . | . . . . . . Utility . | . . . . . . Device . | . . . . . . Storage . | . . . . . . Processor . | . . . . . . Hackware . | . . . . . . Protection . | . . . . . . Artifact . | . . . . . . Weapon . | . . . . . . Energy Gun . | . . . . . . Energy Cannon . | . . . . . . Ballistic Gun . | . . . . . . Ballistic Cannon . | . . . . . . Launcher . | . . . . . . Special Weapon . | . . . . . . Impact Weapon . | . . . . . . Slashing Weapon . | . . . . . . Piercing Weapon . | . . . . . . Special Melee Weapon . | . . . . . . Unidentified Prototypes . | . . . . . . Parts Lost 5 | . . . . . 5 Power 2 | . . . . . 2 Propulsion 2 | . . . . . 2 Utility . | . . . . . . Weapon 1 | . . . . . 1 Highest Loss Streak 3 | . . . . . 3 To Critical Strikes . | . . . . . . Average Slot Usage (%) 95 | . 100 88 89 100 96 Engine 15 | . 19 15 17 14 12 Treads 9 | . . . . . 23 Wheel 20 | . 38 25 35 28 . Hover 1 | . 1 5 . . . Device 20 | . 19 21 11 28 21 Storage 9 | . 19 3 11 . 3 Processor 3 | . 1 5 5 14 3 Protection 3 | . . . . . 8 Energy Gun 3 | . . . . . 8 Ballistic Gun 3 | . . . . . 9 Special Weapon 2 | . . 8 5 14 . Naked Turns 59 | . 1 35 18 . 5 Heaviest Build 18 | 9 9 6 6 6 18 Greatest Support 46 | 32 32 20 20 20 46 Greatest Overweight (x) 1 | . . . . . 1 Average Overweight (x) . | . . . . . . Largest Inventory Capacity 6 | 4 4 1 1 . 6 Average Capacity 2 | 3 3 . . . 2 Most Carried 6 | 4 4 . . . 6 Average Carried 1 | 2 3 . . . 1 Final Capacity 4 | 4 . 1 . . 1 Final Carried 4 | 4 . . . . 1 Class Distribution -------------------- 29% | Recycler 27% | Sentry 9% | Tunneler 9% | Hauler 7% | Worker 6% | Builder 4% | Watcher 3% | Cogmind Dominant Class ---------------- Recycler | -10/Materials Tunneler | -10/Mines Worker | -9/Materials Builder | -8/Materials Sentry | -8/Storage Resources | -11 -10 -10 -9 -8 -8 ----------- Run | Jun Mat Min Mat Mat Sto Matter Collected 39 | . . . . . 39 Remotely . | . . . . . . Salvage Created 212 | . . . . . 212 Parts 9 | . . . . . 9 Haulers Intercepted . | . . . . . . Recyclers Shooed . | . . . . . . Parts Field Recycled . | . . . . . . Retrieved Matter . | . . . . . . Parts Self-Destructed . | . . . . . . Prevented . | . . . . . . Kills | -11 -10 -10 -9 -8 -8 ------- Run | Jun Mat Min Mat Mat Sto Combat Hostiles Destroyed 4 | . . . . . 4 Guns 4 | . . . . . 4 Classes Destroyed 3 | . . . . . 3 Grunt 2 | . . . . . 2 Brawler 1 | . . . . . 1 Sentry 1 | . . . . . 1 Best Kill Streak 2 | . . . . . 2 Combat Bots Only 2 | . . . . . 2 Max Kills in Single Turn 1 | . . . . . 1 Gunslinging . | . . . . . . Exploded . | . . . . . . Melee . | . . . . . . Uniques/NPCs Destroyed . | . . . . . . Combat | -11 -10 -10 -9 -8 -8 -------- Run | Jun Mat Min Mat Mat Sto Damage Taken 1363 | . . . 159 . 1204 Core 543 | . . . 159 . 384 Absorbed by Shields . | . . . . . . Core Remaining (%) 86 | 100 . 100 60 . . Volleys Fired 34 | . . 8 9 . 17 Largest 2 | . . 1 1 . 2 Hottest 100 | . . 100 20 . 79 Shots Fired 38 | . . 8 9 . 21 Gun 21 | . . . . . 21 Cannon . | . . . . . . Launcher . | . . . . . . Special 17 | . . 8 9 . . Kinetic 17 | . . . . . 17 Thermal 21 | . . 8 9 . 4 Explosive . | . . . . . . Electromagnetic . | . . . . . . Robot Hit Streak 11 | . . . . . 11 Robot Miss Streak 1 | . . . . . 1 Penetration Max . | . . . . . . Secondary Targets 1 | . . . . . 1 Max Gunslinging Chain 1 | . . . . . 1 Shots Hit Robots 18 | . . . . . 18 Core Hits 9 | . . . . . 9 Critical Kills . | . . . . . . Critical Parts Destroyed . | . . . . . . Critical Strikes . | . . . . . . Melee Attacks . | . . . . . . Impact . | . . . . . . Slashing . | . . . . . . Piercing . | . . . . . . Sneak Attacks . | . . . . . . Combat Hostiles . | . . . . . . Follow-up Attacks . | . . . . . . Damage Inflicted 206 | . . . 8 . 198 Guns 198 | . . . . . 198 Cannons . | . . . . . . Explosions . | . . . . . . Melee . | . . . . . . Ramming 8 | . . . 8 . . Kinetic 138 | . . . . . 138 Thermal 60 | . . . . . 60 Explosive . | . . . . . . Electromagnetic . | . . . . . . Impact . | . . . . . . Slashing . | . . . . . . Piercing . | . . . . . . Highest Corruption 1 | . 1 1 . . . Average Corruption 1 | . 1 1 . . . Corruption Purged . | . . . . . . Corruption Blocked . | . . . . . . Effects 4 | . 3 1 . . . Message Errors 1 | . . 1 . . . Heat Flow Errors 1 | . 1 . . . . Energy Discharges 1 | . 1 . . . . Data Loss (minor) 1 | . 1 . . . . Overload Shots . | . . . . . . Overflow Damage . | . . . . . . Projectiles . | . . . . . . Explosions . | . . . . . . Melee . | . . . . . . Knockbacks . | . . . . . . Impact . | . . . . . . Kinetic . | . . . . . . Secondary . | . . . . . . Self-Inflicted Damage 4 | . . . 4 . . Shots . | . . . . . . Rammed 2 | . . . 2 . . Targets Rammed 2 | . . . 2 . . Kicked . | . . . . . . Crushed . | . . . . . . Highest Temperature 238 | . 238 220 80 . 131 Average Temperature 91 | . 120 103 46 . 67 Received Heat Transfer 594 | . . . 54 . 540 Siege Activations . | . . . . . . Robots Corrupted . | . . . . . . Combat Hostiles . | . . . . . . Parts Fried . | . . . . . . Impact Corruptions . | . . . . . . Robots Melted . | . . . . . . Combat Hostiles . | . . . . . . Parts Melted . | . . . . . . Heat Transferred 148 | . . . . . 148 Parts Sabotaged . | . . . . . . Parts Stolen . | . . . . . . Parts Stripped . | . . . . . . Power Chain Reactions . | . . . . . . Missiles Intercepted . | . . . . . . Alert | -11 -10 -10 -9 -8 -8 ------- Run | Jun Mat Min Mat Mat Sto Peak Influence 233 | . 20 35 39 13 233 Initial 13 | . . . 10 13 4 Average 39 | . 3 26 17 13 81 Maximum Alert Level 1 | . . . . . 1 Low Security (%) 92 | 100 100 100 100 100 81 Level 1 7 | . . . . . 18 Level 2 . | . . . . . . Level 3 . | . . . . . . Level 4 . | . . . . . . Level 5 . | . . . . . . High Security . | . . . . . . Max Security . | . . . . . . Squads Dispatched 2 | . 2 . . . . Investigation 2 | . 2 . . . . Extermination . | . . . . . . Reinforcement . | . . . . . . Assault . | . . . . . . Garrison . | . . . . . . Intercept . | . . . . . . Searches Triggered . | . . . . . . Construction Impeded . | . . . . . . Haulers Reinforced . | . . . . . . Active Scanning Responses . | . . . . . . Cargo Convoy Interrupts . | . . . . . . Stealth | -11 -10 -10 -9 -8 -8 --------- Run | Jun Mat Min Mat Mat Sto Distress Signals . | . . . . . . Communications Jammed . | . . . . . . Distress Signals . | . . . . . . Times Spotted 23 | . . 1 4 . 18 Peak Tracking Total 9 | . . 1 2 . 9 Tactical Retreats 2 | . . . . . 2 Traps | -11 -10 -10 -9 -8 -8 ------- Run | Jun Mat Min Mat Mat Sto Traps Triggered 3 | . 1 . . . 2 Indirectly . | . . . . . . Trap Hack Attempts . | . . . . . . Triggered . | . . . . . . Disarmed . | . . . . . . Reprogrammed . | . . . . . . Reused . | . . . . . . Traps Extracted . | . . . . . . Installed . | . . . . . . Triggered . | . . . . . . Machines | -11 -10 -10 -9 -8 -8 ---------- Run | Jun Mat Min Mat Mat Sto Machines Disabled . | . . . . . . Max in Single Turn . | . . . . . . Machines Repaired . | . . . . . . Machines Sabotaged . | . . . . . . Overloaded Fab Kills . | . . . . . . Hacking | -11 -10 -10 -9 -8 -8 --------- Run | Jun Mat Min Mat Mat Sto Machines Accessed 3 | . 3 . . . . Terminals 3 | . 3 . . . . Fabricators . | . . . . . . Repair Stations . | . . . . . . Recycling Units . | . . . . . . Scanalyzers . | . . . . . . Garrison Access . | . . . . . . Total Hacks 10 | . 10 . . . . Successful 4 | . 4 . . . . Failed 6 | . 6 . . . . Catastrophic . | . . . . . . Database Lockouts . | . . . . . . Manual 7 | . 7 . . . . Terminals 10 | . 10 . . . . Fabricators . | . . . . . . Repair Stations . | . . . . . . Recycling Units . | . . . . . . Scanalyzers . | . . . . . . Garrison Access . | . . . . . . Terminal Hacks 1 | . 1 . . . . Zone Layout 1 | . 1 . . . . Fabricator Hacks . | . . . . . . Repair Station Hacks . | . . . . . . Recycling Unit Hacks . | . . . . . . Scanalyzer . | . . . . . . Garrison Access Hacks . | . . . . . . Unauthorized Hacks 3 | . 3 . . . . Terminals 3 | . 3 . . . . Botnet 3 | . 3 . . . . Fabricators . | . . . . . . Repair Stations . | . . . . . . Recycling Units . | . . . . . . Scanalyzers . | . . . . . . Garrison Access . | . . . . . . Data Cores Recovered . | . . . . . . Used . | . . . . . . Hacking Detections 3 | . 3 . . . . Full Trace Events 2 | . 2 . . . . Feedback Events 1 | . 1 . . . . Corruption 1 | . 1 . . . . Feedback Blocked . | . . . . . . Robot Schematics Acquired . | . . . . . . Robots Built . | . . . . . . Authchips . | . . . . . . Time . | . . . . . . Total Robot Build Rating . | . . . . . . Part Schematics Acquired . | . . . . . . Parts Built . | . . . . . . Authchips . | . . . . . . Time . | . . . . . . Total Part Build Rating . | . . . . . . Parts Repaired . | . . . . . . Time . | . . . . . . Parts Recycled . | . . . . . . Recycled Matter . | . . . . . . Retrieved Matter . | . . . . . . Retrieved Components . | . . . . . . Parts Scanalyzed . | . . . . . . Part Schematics Acquired . | . . . . . . Parts Damaged . | . . . . . . Bothacking | -11 -10 -10 -9 -8 -8 ------------ Run | Jun Mat Min Mat Mat Sto Used RIF Installer . | . . . . . . Robots Hacked 6 | . 1 . 2 . 3 Non-combat 4 | . 1 . 2 . 1 Combat 2 | . . . . . 2 Robot Hacks Applied 9 | . 2 . 2 . 5 map_walls 2 | . . . 2 . . locate_stockpiles 1 | . . . . . 1 map_route 1 | . 1 . . . . mark_security 1 | . 1 . . . . find_shortcuts 2 | . . . . . 2 find_garrison 2 | . . . . . 2 Relay Couplers Released . | . . . . . . Fabnet Peak Effective % . | . . . . . . Robots Rewired . | . . . . . . Allies Hacked . | . . . . . . Hacks Repelled . | . . . . . . Allies | -11 -10 -10 -9 -8 -8 -------- Run | Jun Mat Min Mat Mat Sto Total Allies . | . . . . . . Largest Group . | . . . . . . Highest-Rated Group . | . . . . . . Highest-Rated Ally . | . . . . . . Total Orders . | . . . . . . Ally Attacks . | . . . . . . Total Damage . | . . . . . . Kills . | . . . . . . Allies Corrupted . | . . . . . . Allies Melted . | . . . . . . Intel | -11 -10 -10 -9 -8 -8 ------- Run | Jun Mat Min Mat Mat Sto Robot Analysis Total 8 | 1 1 2 1 . 3 Derelict Logs Recovered 1 | . . 1 . . . Drone Launches . | . . . . . . Drone Recoveries . | . . . . . . Exploration | -11 -10 -10 -9 -8 -8 ------------- Run | Jun Mat Min Mat Mat Sto Turns Passed 1955 | 34 596 346 184 29 766 Spaces Moved 1377 | 36 515 385 211 36 194 Core 107 | 11 1 25 28 . 42 Treads 120 | . . . . . 120 Legs . | . . . . . . Wheels 979 | 25 471 243 183 36 21 Hover 160 | . 43 117 . . . Flight 11 | . . . . . 11 Fastest Speed 37 | 50 50 50 50 80 37 Average Speed 90 | 84 96 70 76 80 130 Slowest Speed 160 | 100 100 80 80 80 160 Overloaded Moves . | . . . . . . Propulsion Burnouts . | . . . . . . Robots Hopped 3 | . . . . . 3 Cave-ins Triggered . | . . . . . . Exploration Rate (%) 30 | 3 57 69 26 10 17 Regions Visited 5 Branch Regions 2 Pre-discovered Areas 1 | . . 1 . . . Known Exits Taken 1 | . 1 . . . . Unknown Exits Taken 4 | 1 . 1 1 1 . Scrap Searched . | . . . . . . Spaces Dug 8 | . . 8 . . . Terrain Destroyed 8 | . . 8 . . . Melee . | . . . . . . Projectile 8 | . . 8 . . . AOE . | . . . . . . Terrain Rammed . | . . . . . . Walls Destroyed . | . . . . . . Machines Disabled . | . . . . . . Actions | -11 -10 -10 -9 -8 -8 --------- Run | Jun Mat Min Mat Mat Sto Total 2030 | 39 614 434 223 35 685 Wait 594 | . 80 37 2 . 475 Move 1366 | 35 514 384 210 35 188 Hop 3 | . . . . . 3 Pick Up 15 | 4 10 . . . 1 Fast Attach . | . . . . . . Attach . | . . . . . . Detach . | . . . . . . Swap . | . . . . . . Drop . | . . . . . . Fire 34 | . . 8 9 . 17 Melee . | . . . . . . Ram 2 | . . . 2 . . Kick . | . . . . . . Crush . | . . . . . . Escape Stasis . | . . . . . . Rewire 1 | . . . . . 1 Trap . | . . . . . . Miscellaneous 15 | . 10 5 . . . Route ------- -11/Junkyard -10/Materials (discovered 2 exits: [*Mat] / *Min) -10/Mines -9/Materials -8/Materials -8/Storage History --------- Turn | Location | Event 3 | -11/Junkyard | Discovered new exit (range 15) 35 | -11/Junkyard | Entered Materials 87 | -10/Materials | Discovered new exit (range 11) 315 | -10/Materials | Discovered new exit (range 8) 630 | -10/Materials | Identified exit to Mines 631 | -10/Materials | Entered Mines 753 | -10/Mines | Learned location of Zion (-7) 805 | -10/Mines | YI-UF0 nonchalantly dropped a Grenade Launcher on the ground 973 | -10/Mines | Discovered new exit (range 5) 977 | -10/Mines | Entered Materials 1159 | -9/Materials | Discovered new exit (range 3) 1161 | -9/Materials | Entered another Materials area 1179 | -8/Materials | Discovered new exit (range 14) 1190 | -8/Materials | Entered Storage 1381 | -8/Storage | Core integrity fell below 50% 1392 | -8/Storage | Lost 3 parts (1p2n) 1956 | -8/Storage | Self-destructed Last Messages --------------- 01408_ Acquired 26 Protomatter. 01409_ Acquired 5 Protomatter. 01415_ Lgt. Ion Engine destroyed. 01417_ Critical hit (Burn: +37). 01417_ Lgt. Assault Rifle destroyed. 01418_ Released control of S-10 Pest. 01418_ Attempting to rewire S-10 Pest. 01418_ S-10 Pest is rebooting, system inaccessible. 01419_ Took control of Y-45 Defender. 01419_ Extracted analysis data for Y-45 Defender. 01419_ S-10 Pest reactivates. 01445_ G-47 Trooper destroyed. 01445_ Switching to secondary target: Y-45 Defender. 01448_ Y-45 Defender destroyed. 01568_ K-01 Serf collects debris. 01618_ Acquired 39 matter. 01619_ K-01 Serf collects debris. 01622_ K-01 Serf cleans the Component Storage. 01626_ K-01 Serf collects debris. 01676_ Acquired Hvy. Assault Rifle. Map ----- +----------------------------------------------------+ | | | | | | | | | | | | | | | | | | | | | | | | | | | | | | | | | | | ?????????????????????????########## | | ?????????????????????????# # | | ?????????????????????????# """ # | | ?????????????????????????# """ # | | ?????????????????????????# """ # | | ?????????????????????????# """ # | | ?????????????????????????# """ # | | ????????????????????????## ! # | | ????????????????????????#Y a [=[ # | | ????????????????????????## %=% # | | ?????????????????????????######+### | | ?????????????????????????????#* #? | | ??????????????????????????#### #? | | ??????????????????????????# #? | | ??????????????????????????# %= #? | | ??????????????????????????# /* #? | | ??????????????????????????# #? | | ??????????????????????????# #? | | ??????????????????????????# #? | | ???????????????????????####+## #? | | ???????????????????????#! # #? | | ???????????????????????# #^ #? | | ???????????????????????# # #? | | ???????????????????????# """ # #? | | ??????????????????????## """ # #? | | ??????????????????????# """ + #? | | ??????????????????????## # ## | | ???????????????????????# """ # ## | | ???????????????????????# """ # ## | | ???????????????????????# """ # ## | | ???????????????????????# # ## | | ???????????????????????#? =# ## | | ?????????????????????????##### ## | +----------------------------------------------------+ Best States ------------- Heat Dissipation 36 Energy Generation 17 Energy Capacity 215 Matter Stores 100 Matter Capacity 100 Sight Range 18 Robot Scan Range 14 Terrain Scan Range 16 Terrain Scan Density 85 Additional Mass Support 6 Armor Coverage 150 Resistance: KI 20 Resistance: TH 20 Resistance: EX 70 Resistance: EM 20 Resistance: I 45 Resistance: S 20 Resistance: P 20 Evasion (%) 53 Recoil Reduction 2 Offensive Hacking 10 Item Schematics ----------------- None Robot Schematics ------------------ None Fabricated ------------ Nothing Alien Tech Used ----------------- None Achievements -------------- None Challenges ------------ None Polymind | -11 -10 -10 -9 -8 -8 ---------- Run | Jun Mat Min Mat Mat Sto Hosts 9 | 1 1 2 2 . 3 Combat Hostiles 2 | . . . . . 2 Allies . | . . . . . . Unique Host Classes 8 | 1 1 2 1 . 3 Average Host Suspicion 50 | 4 32 58 49 16 63 Unsuspicious Activity 651 | 2 56 65 68 . 460 Returns to Shadow 1 | . . . . . 1 Fuzzy Dispatches . | . . . . . . Protomatter Created 36 | . . . . . 36 Used 71 | 5 12 10 10 . 34 Decayed 5 | . . . . . 5 Highest Spend 23 | 5 12 5 5 . 23 Top 5 Hosts by Kills: S-10 Pest (-8/Storage: 2) Y-45 Defender (-8/Storage: 2) Game ------ Seed IntegrityLongswordThrower Manual? 0 Play Time 00:20:53 Cumulative 48.2 hours Start 2023.10.09 @ 01:51:11 End 2023.10.09 @ 12:59:39 Sessions 2 Manual Loads 0 Difficulty Adventurer Special Mode Winter2022/Polymind Game No. 24 Rogue 0 Adventurer 24 Explorer 0 Win Type - Total 0 Types 0/0/0/0/0/0/0/0/0 Lore% 23 Gallery% 40 Achievement% 32 Wizard Run 0 Options --------- ASCII 0 Keyboard 0 Movement Mouse Keybinds 0 Fullscreen 1 Font 18/SmallcapsGlow Map View 76x50 Tactical HUD 1 Map Filters NONE Filters NONE Steam 1 RUN: d3f34c27-a498-456b-9dbc-01c26e244644